[Event "Titled Tuesday Blitz March 22 Early 2022"]
[White "Kozak, Antoni"]
[Black "Migot, Tangi"]
[WhiteFideId "21832030"]
[BlackFideId "662445"]
[WhiteElo "2236"]
[BlackElo "2526"]
[Result "0-1"]
[Round "10"]
[TimeControl "180+1"]
[Date "2022.03.22"]
[WhiteClock "0:00:01"]
[BlackClock "0:00:37"]

1. e4 {[%clk 0:03:00]}  c5 {[%clk 0:02:59]} 2. Nf3 {[%clk 0:02:59]}  e6 {[%clk 0:03:00]} 3. d4 {[%clk 0:03:00]}  cxd4 {[%clk 0:03:01]} 4. Nxd4 {[%clk 0:03:00]}  a6 {[%clk 0:03:02]} 5. Bd3 {[%clk 0:02:57]}  g6 {[%clk 0:03:02]} 6. O-O {[%clk 0:02:47]}  Bg7 {[%clk 0:03:02]} 7. Be3 {[%clk 0:02:45]}  Ne7 {[%clk 0:03:00]} 8. c4 {[%clk 0:02:30]}  O-O {[%clk 0:02:55]} 9. Nc3 {[%clk 0:02:29]}  d5 {[%clk 0:02:52]} 10. exd5 {[%clk 0:02:20]}  exd5 {[%clk 0:02:53]} 11. c5 {[%clk 0:02:07]}  Nbc6 {[%clk 0:02:51]} 12. Nce2 {[%clk 0:02:02]}  Ne5 {[%clk 0:02:49]} 13. f3 {[%clk 0:01:54]}  Nxd3 {[%clk 0:02:46]} 14. Qxd3 {[%clk 0:01:54]}  Nf5 {[%clk 0:02:45]} 15. Bf2 {[%clk 0:01:50]}  Re8 {[%clk 0:02:38]} 16. Rfe1 {[%clk 0:01:48]}  Bd7 {[%clk 0:02:36]} 17. Rad1 {[%clk 0:01:45]}  Qa5 {[%clk 0:02:34]} 18. a3 {[%clk 0:01:37]}  Nxd4 {[%clk 0:02:21]} 19. Nxd4 {[%clk 0:01:37]}  Rxe1+ {[%clk 0:02:15]} 20. Rxe1 {[%clk 0:01:33]}  Qxc5 {[%clk 0:02:09]} 21. Nf5 {[%clk 0:01:08]}  Qb5 {[%clk 0:02:07]} 22. Ne7+ {[%clk 0:00:51]}  Kh8 {[%clk 0:02:04]} 23. Qxd5 {[%clk 0:00:50]}  Qxd5 {[%clk 0:01:58]} 24. Nxd5 {[%clk 0:00:51]}  Re8 {[%clk 0:01:57]} 25. Rxe8+ {[%clk 0:00:31]}  Bxe8 {[%clk 0:01:57]} 26. b4 {[%clk 0:00:30]}  Bb2 {[%clk 0:01:53]} 27. Be1 {[%clk 0:00:13]}  Bxa3 {[%clk 0:01:34]} 28. Bc3+ {[%clk 0:00:13]}  Kg8 {[%clk 0:01:35]} 29. Nf6+ {[%clk 0:00:13]}  Kf8 {[%clk 0:01:35]} 30. Nxh7+ {[%clk 0:00:12]}  Ke7 {[%clk 0:01:35]} 31. Nf6 {[%clk 0:00:12]}  Bc6 {[%clk 0:01:32]} 32. Kf2 {[%clk 0:00:12]}  Ke6 {[%clk 0:01:32]} 33. Ng4 {[%clk 0:00:10]}  Bc1 {[%clk 0:01:28]} 34. Ne3 {[%clk 0:00:09]}  f5 {[%clk 0:01:27]} 35. g3 {[%clk 0:00:09]}  g5 {[%clk 0:01:17]} 36. h4 {[%clk 0:00:07]}  f4 {[%clk 0:01:13]} 37. Ng2 {[%clk 0:00:07]}  fxg3+ {[%clk 0:01:06]} 38. Kxg3 {[%clk 0:00:07]}  gxh4+ {[%clk 0:01:06]} 39. Nxh4 {[%clk 0:00:08]}  Kd5 {[%clk 0:01:06]} 40. f4 {[%clk 0:00:07]}  Kc4 {[%clk 0:01:06]} 41. Be1 {[%clk 0:00:07]}  Ba3 {[%clk 0:00:58]} 42. Ng6 {[%clk 0:00:07]}  Be4 {[%clk 0:00:54]} 43. Ne5+ {[%clk 0:00:05]}  Kb5 {[%clk 0:00:53]} 44. Kg4 {[%clk 0:00:04]}  Bxb4 {[%clk 0:00:53]} 45. Bxb4 {[%clk 0:00:04]}  Kxb4 {[%clk 0:00:54]} 46. f5 {[%clk 0:00:05]}  Bd5 {[%clk 0:00:49]} 47. f6 {[%clk 0:00:04]}  a5 {[%clk 0:00:49]} 48. Kf5 {[%clk 0:00:04]}  a4 {[%clk 0:00:49]} 49. Nd3+ {[%clk 0:00:05]}  Kc3 {[%clk 0:00:49]} 50. Nf4 {[%clk 0:00:02]}  Bf7 {[%clk 0:00:47]} 51. Ke5 {[%clk 0:00:02]}  a3 {[%clk 0:00:46]} 52. Nd5+ {[%clk 0:00:03]}  Kb2 {[%clk 0:00:45]} 53. Nb4 {[%clk 0:00:03]}  Kb3 {[%clk 0:00:43]} 54. Nd3 {[%clk 0:00:03]}  b5 {[%clk 0:00:41]} 55. Kd6 {[%clk 0:00:02]}  Kc3 {[%clk 0:00:38]} 56. Nc1 {[%clk 0:00:02]}  a2 {[%clk 0:00:37]} 57. Ke7 {[%clk 0:00:01]}  a1=Q {[%clk 0:00:36]} 58. Kxf7 {[%clk 0:00:01]}  Qxc1 {[%clk 0:00:37]} 0-1


[Site "https://www.chess.com"]

[Event "Titled Tuesday Blitz March 22 Early 2022"]
[White "Lagunov, Evgenij"]
[Black "Omariev, Maksim"]
[WhiteFideId "4125363"]
[BlackFideId "4193423"]
[WhiteElo "2200"]
[BlackElo "2506"]
[Result "0-1"]
[Round "10"]
[TimeControl "180+1"]
[Date "2022.03.22"]
[WhiteClock "0:00:38"]
[BlackClock "0:01:07"]

1. e4 {[%clk 0:03:00]}  h5 {[%clk 0:02:37]} 2. d4 {[%clk 0:02:59]}  h4 {[%clk 0:02:38]} 3. Nc3 {[%clk 0:02:56]}  c6 {[%clk 0:02:39]} 4. Bg5 {[%clk 0:02:52]}  h3 {[%clk 0:02:31]} 5. Nxh3 {[%clk 0:02:51]}  d5 {[%clk 0:02:31]} 6. Qd2 {[%clk 0:02:42]}  Bxh3 {[%clk 0:02:29]} 7. gxh3 {[%clk 0:02:41]}  dxe4 {[%clk 0:02:24]} 8. Nxe4 {[%clk 0:02:39]}  Nd7 {[%clk 0:02:23]} 9. Qe3 {[%clk 0:02:33]}  Qa5+ {[%clk 0:02:11]} 10. c3 {[%clk 0:02:17]}  O-O-O {[%clk 0:02:08]} 11. Bg2 {[%clk 0:02:08]}  Ngf6 {[%clk 0:02:06]} 12. Bf4 {[%clk 0:01:55]}  Nd5 {[%clk 0:02:05]} 13. Qg3 {[%clk 0:01:52]}  Nxf4 {[%clk 0:02:04]} 14. Qxf4 {[%clk 0:01:52]}  Nf6 {[%clk 0:02:05]} 15. Nc5 {[%clk 0:01:45]}  e6 {[%clk 0:02:01]} 16. Nb3 {[%clk 0:01:35]}  Qa6 {[%clk 0:01:46]} 17. Bf1 {[%clk 0:01:17]}  Qa4 {[%clk 0:01:42]} 18. Bg2 {[%clk 0:01:07]}  Bd6 {[%clk 0:01:37]} 19. Qd2 {[%clk 0:01:00]}  Nd5 {[%clk 0:01:31]} 20. O-O {[%clk 0:00:55]}  Nf4 {[%clk 0:01:28]} 21. Qe3 {[%clk 0:00:54]}  Rh6 {[%clk 0:01:23]} 22. Kh1 {[%clk 0:00:52]}  Nxg2 {[%clk 0:01:16]} 23. Kxg2 {[%clk 0:00:51]}  Rdh8 {[%clk 0:01:17]} 24. f4 {[%clk 0:00:40]}  Qb5 {[%clk 0:01:13]} 25. Qf3 {[%clk 0:00:40]}  Qf5 {[%clk 0:01:07]} 26. Qg4 {[%clk 0:00:38]}  Rg6 {[%clk 0:01:07]} 0-1


[Site "https://www.chess.com"]

[Event "Titled Tuesday Blitz March 22 Early 2022"]
[White "Le, Tuan Minh"]
[Black "Nepomniachtchi, Ian"]
[WhiteFideId "12401153"]
[BlackFideId "4168119"]
[WhiteElo "2450"]
[BlackElo "2740"]
[Result "0-1"]
[Round "10"]
[TimeControl "180+1"]
[Date "2022.03.22"]
[WhiteClock "0:00:04"]
[BlackClock "0:00:21"]

1. d4 {[%clk 0:02:58]}  Nf6 {[%clk 0:02:59]} 2. Nf3 {[%clk 0:02:45]}  d5 {[%clk 0:02:59]} 3. Bf4 {[%clk 0:02:34]}  Bf5 {[%clk 0:02:58]} 4. c4 {[%clk 0:02:16]}  e6 {[%clk 0:02:57]} 5. Nc3 {[%clk 0:02:16]}  Bb4 {[%clk 0:02:52]} 6. e3 {[%clk 0:02:11]}  O-O {[%clk 0:02:50]} 7. Qb3 {[%clk 0:01:46]}  c5 {[%clk 0:02:46]} 8. Be2 {[%clk 0:01:40]}  Nc6 {[%clk 0:02:45]} 9. dxc5 {[%clk 0:01:31]}  Ne4 {[%clk 0:02:41]} 10. O-O {[%clk 0:01:31]}  Nxc5 {[%clk 0:02:41]} 11. Qd1 {[%clk 0:01:31]}  dxc4 {[%clk 0:02:31]} 12. Bxc4 {[%clk 0:01:31]}  Nd3 {[%clk 0:02:29]} 13. Bxd3 {[%clk 0:01:26]}  Qxd3 {[%clk 0:02:29]} 14. Qb3 {[%clk 0:01:25]}  Rac8 {[%clk 0:02:18]} 15. Rac1 {[%clk 0:01:21]}  Qa6 {[%clk 0:02:16]} 16. h3 {[%clk 0:01:11]}  h6 {[%clk 0:02:15]} 17. Rfd1 {[%clk 0:01:11]}  Be7 {[%clk 0:02:15]} 18. Qb5 {[%clk 0:01:07]}  Rfd8 {[%clk 0:01:48]} 19. Qxa6 {[%clk 0:00:46]}  bxa6 {[%clk 0:01:49]} 20. Ne2 {[%clk 0:00:44]}  Be4 {[%clk 0:01:40]} 21. Rxd8+ {[%clk 0:00:42]}  Rxd8 {[%clk 0:01:35]} 22. Ned4 {[%clk 0:00:42]}  Nxd4 {[%clk 0:01:25]} 23. Nxd4 {[%clk 0:00:43]}  Rd7 {[%clk 0:01:24]} 24. Rc8+ {[%clk 0:00:38]}  Kh7 {[%clk 0:01:24]} 25. Rc7 {[%clk 0:00:37]}  Rxc7 {[%clk 0:01:23]} 26. Bxc7 {[%clk 0:00:38]}  Bd5 {[%clk 0:01:20]} 27. a3 {[%clk 0:00:36]}  f6 {[%clk 0:01:19]} 28. b4 {[%clk 0:00:32]}  Kg6 {[%clk 0:01:09]} 29. Bb8 {[%clk 0:00:32]}  a5 {[%clk 0:01:07]} 30. Bxa7 {[%clk 0:00:17]}  axb4 {[%clk 0:01:06]} 31. axb4 {[%clk 0:00:17]}  Bxb4 {[%clk 0:01:07]} 32. Ne2 {[%clk 0:00:18]}  e5 {[%clk 0:01:07]} 33. Bb6 {[%clk 0:00:17]}  Bc4 {[%clk 0:01:06]} 34. Ng3 {[%clk 0:00:17]}  Bd3 {[%clk 0:01:06]} 35. e4 {[%clk 0:00:17]}  Be1 {[%clk 0:01:03]} 36. Kh2 {[%clk 0:00:16]}  Kf7 {[%clk 0:01:01]} 37. f3 {[%clk 0:00:16]}  g6 {[%clk 0:01:01]} 38. Be3 {[%clk 0:00:16]}  h5 {[%clk 0:00:47]} 39. Nh1 {[%clk 0:00:16]}  f5 {[%clk 0:00:43]} 40. exf5 {[%clk 0:00:14]}  gxf5 {[%clk 0:00:44]} 41. f4 {[%clk 0:00:14]}  e4 {[%clk 0:00:35]} 42. Nf2 {[%clk 0:00:10]}  Be2 {[%clk 0:00:35]} 43. Kg3 {[%clk 0:00:10]}  Bc3 {[%clk 0:00:31]} 44. Nh1 {[%clk 0:00:08]}  Ke6 {[%clk 0:00:27]} 45. Kf2 {[%clk 0:00:08]}  Bd1 {[%clk 0:00:27]} 46. Ng3 {[%clk 0:00:08]}  h4 {[%clk 0:00:27]} 47. Nf1 {[%clk 0:00:08]}  Kd5 {[%clk 0:00:25]} 48. Bb6 {[%clk 0:00:07]}  Bf6 {[%clk 0:00:17]} 49. Ne3+ {[%clk 0:00:06]}  Kc6 {[%clk 0:00:18]} 50. Nxd1 {[%clk 0:00:04]}  Kxb6 {[%clk 0:00:18]} 51. Ne3 {[%clk 0:00:05]}  Bd4 {[%clk 0:00:18]} 52. Ke2 {[%clk 0:00:03]}  Bxe3 {[%clk 0:00:18]} 53. Kxe3 {[%clk 0:00:04]}  Kc5 {[%clk 0:00:18]} 54. Kf2 {[%clk 0:00:04]}  Kd4 {[%clk 0:00:18]} 55. g4 {[%clk 0:00:03]}  hxg3+ {[%clk 0:00:19]} 56. Kxg3 {[%clk 0:00:03]}  Kd3 {[%clk 0:00:20]} 57. h4 {[%clk 0:00:04]}  e3 {[%clk 0:00:20]} 58. h5 {[%clk 0:00:04]}  e2 {[%clk 0:00:21]} 0-1


[Site "https://www.chess.com"]

[Event "Titled Tuesday Blitz March 22 Early 2022"]
[White "Lewtak, Damian"]
[Black "Dixit, Nikhil"]
[WhiteFideId "1141724"]
[BlackFideId "5059534"]
[WhiteElo "2362"]
[BlackElo "2223"]
[Result "1/2-1/2"]
[Round "10"]
[TimeControl "180+1"]
[Date "2022.03.22"]
[WhiteClock "0:00:55"]
[BlackClock "0:00:51"]

1. c4 {[%clk 0:03:00]}  Nc6 {[%clk 0:02:58]} 2. Nc3 {[%clk 0:03:01]}  e5 {[%clk 0:02:53]} 3. g3 {[%clk 0:02:58]}  h5 {[%clk 0:02:51]} 4. h3 {[%clk 0:02:57]}  h4 {[%clk 0:02:49]} 5. g4 {[%clk 0:02:57]}  d6 {[%clk 0:02:44]} 6. e4 {[%clk 0:02:57]}  Nge7 {[%clk 0:02:44]} 7. d3 {[%clk 0:02:57]}  Ng6 {[%clk 0:02:43]} 8. Nge2 {[%clk 0:02:57]}  Be7 {[%clk 0:02:43]} 9. d4 {[%clk 0:02:51]}  Bg5 {[%clk 0:02:38]} 10. d5 {[%clk 0:02:51]}  Nb8 {[%clk 0:02:32]} 11. Bxg5 {[%clk 0:02:43]}  Qxg5 {[%clk 0:02:33]} 12. Qd2 {[%clk 0:02:44]}  f6 {[%clk 0:02:32]} 13. Nb5 {[%clk 0:02:40]}  Na6 {[%clk 0:02:23]} 14. a3 {[%clk 0:02:32]}  Bd7 {[%clk 0:02:18]} 15. b4 {[%clk 0:02:29]}  Ke7 {[%clk 0:02:05]} 16. Qc3 {[%clk 0:02:26]}  Nf4 {[%clk 0:01:57]} 17. Rc1 {[%clk 0:02:20]}  c6 {[%clk 0:01:49]} 18. Nxf4 {[%clk 0:02:11]}  Qxf4 {[%clk 0:01:47]} 19. Nxd6 {[%clk 0:01:57]}  Kxd6 {[%clk 0:01:45]} 20. c5+ {[%clk 0:01:54]}  Kc7 {[%clk 0:01:36]} 21. Bg2 {[%clk 0:01:54]}  Kc8 {[%clk 0:01:23]} 22. b5 {[%clk 0:01:52]}  Nc7 {[%clk 0:01:19]} 23. bxc6 {[%clk 0:01:46]}  bxc6 {[%clk 0:01:19]} 24. O-O {[%clk 0:01:45]}  Nb5 {[%clk 0:01:04]} 25. Qa5 {[%clk 0:01:39]}  Nd4 {[%clk 0:01:04]} 26. Rb1 {[%clk 0:01:36]}  Nf3+ {[%clk 0:00:48]} 27. Bxf3 {[%clk 0:01:34]}  Qxf3 {[%clk 0:00:49]} 28. Qa6+ {[%clk 0:01:32]}  Kd8 {[%clk 0:00:48]} 29. dxc6 {[%clk 0:01:15]}  Qxh3 {[%clk 0:00:45]} 30. Rfd1 {[%clk 0:01:12]}  Qxg4+ {[%clk 0:00:43]} 31. Kf1 {[%clk 0:01:10]}  Qh3+ {[%clk 0:00:37]} 32. Ke2 {[%clk 0:01:04]}  Qg4+ {[%clk 0:00:27]} 33. Ke1 {[%clk 0:00:42]}  Qg1+ {[%clk 0:00:26]} 34. Qf1 {[%clk 0:00:41]}  Qxf1+ {[%clk 0:00:24]} 35. Kxf1 {[%clk 0:00:41]}  Kc7 {[%clk 0:00:24]} 36. cxd7 {[%clk 0:00:23]}  Rhd8 {[%clk 0:00:24]} 37. Kg2 {[%clk 0:00:19]}  Rxd7 {[%clk 0:00:21]} 38. Rxd7+ {[%clk 0:00:20]}  Kxd7 {[%clk 0:00:22]} 39. Rb7+ {[%clk 0:00:20]}  Kc6 {[%clk 0:00:22]} 40. Rxg7 {[%clk 0:00:21]}  Kxc5 {[%clk 0:00:23]} 41. Rf7 {[%clk 0:00:22]}  Kd4 {[%clk 0:00:23]} 42. Rxf6 {[%clk 0:00:21]}  Kxe4 {[%clk 0:00:21]} 43. Kh3 {[%clk 0:00:21]}  Rd8 {[%clk 0:00:19]} 44. Ra6 {[%clk 0:00:21]}  Rd7 {[%clk 0:00:18]} 45. Kxh4 {[%clk 0:00:21]}  Kf3 {[%clk 0:00:19]} 46. Kg5 {[%clk 0:00:20]}  Kxf2 {[%clk 0:00:18]} 47. Kf5 {[%clk 0:00:20]}  Re7 {[%clk 0:00:19]} 48. Ke4 {[%clk 0:00:20]}  Ke2 {[%clk 0:00:19]} 49. Ra5 {[%clk 0:00:20]}  Kd2 {[%clk 0:00:19]} 50. Rxe5 {[%clk 0:00:16]}  Rxe5+ {[%clk 0:00:20]} 51. Kxe5 {[%clk 0:00:17]}  Kc3 {[%clk 0:00:20]} 52. Ke4 {[%clk 0:00:18]}  a5 {[%clk 0:00:19]} 53. a4 {[%clk 0:00:17]}  Kb4 {[%clk 0:00:19]} 54. Kd3 {[%clk 0:00:17]}  Kxa4 {[%clk 0:00:20]} 55. Kc2 {[%clk 0:00:18]}  Ka3 {[%clk 0:00:21]} 56. Kb1 {[%clk 0:00:19]}  Kb4 {[%clk 0:00:22]} 57. Ka1 {[%clk 0:00:20]}  Ka4 {[%clk 0:00:22]} 58. Kb1 {[%clk 0:00:21]}  Kb5 {[%clk 0:00:23]} 59. Ka1 {[%clk 0:00:22]}  Kb6 {[%clk 0:00:23]} 60. Kb1 {[%clk 0:00:22]}  Ka6 {[%clk 0:00:24]} 61. Ka1 {[%clk 0:00:23]}  Kb5 {[%clk 0:00:25]} 62. Kb1 {[%clk 0:00:24]}  Kc5 {[%clk 0:00:26]} 63. Ka1 {[%clk 0:00:25]}  Kc6 {[%clk 0:00:27]} 64. Kb1 {[%clk 0:00:26]}  Kb6 {[%clk 0:00:27]} 65. Ka1 {[%clk 0:00:27]}  Kb7 {[%clk 0:00:28]} 66. Kb1 {[%clk 0:00:28]}  Ka7 {[%clk 0:00:29]} 67. Ka1 {[%clk 0:00:29]}  Kb8 {[%clk 0:00:30]} 68. Kb1 {[%clk 0:00:30]}  Ka8 {[%clk 0:00:31]} 69. Ka1 {[%clk 0:00:31]}  Kb7 {[%clk 0:00:31]} 70. Kb1 {[%clk 0:00:31]}  Kb6 {[%clk 0:00:32]} 71. Ka1 {[%clk 0:00:32]}  Kb5 {[%clk 0:00:33]} 72. Kb1 {[%clk 0:00:33]}  a4 {[%clk 0:00:34]} 73. Ka1 {[%clk 0:00:34]}  Ka5 {[%clk 0:00:35]} 74. Kb1 {[%clk 0:00:35]}  Ka6 {[%clk 0:00:36]} 75. Ka1 {[%clk 0:00:36]}  Kb6 {[%clk 0:00:37]} 76. Kb1 {[%clk 0:00:37]}  Kb5 {[%clk 0:00:38]} 77. Ka1 {[%clk 0:00:38]}  Ka5 {[%clk 0:00:38]} 78. Kb1 {[%clk 0:00:39]}  Kb4 {[%clk 0:00:39]} 79. Ka1 {[%clk 0:00:40]}  Kc4 {[%clk 0:00:40]} 80. Kb1 {[%clk 0:00:40]}  Kc5 {[%clk 0:00:41]} 81. Ka1 {[%clk 0:00:41]}  Kb4 {[%clk 0:00:42]} 82. Kb1 {[%clk 0:00:42]}  Kb3 {[%clk 0:00:43]} 83. Ka1 {[%clk 0:00:43]}  Ka3 {[%clk 0:00:43]} 84. Kb1 {[%clk 0:00:44]}  Kb4 {[%clk 0:00:44]} 85. Ka1 {[%clk 0:00:45]}  a3 {[%clk 0:00:44]} 86. Kb1 {[%clk 0:00:46]}  Kb5 {[%clk 0:00:44]} 87. Ka1 {[%clk 0:00:47]}  Ka5 {[%clk 0:00:45]} 88. Kb1 {[%clk 0:00:48]}  Kb6 {[%clk 0:00:46]} 89. Ka1 {[%clk 0:00:49]}  Kc7 {[%clk 0:00:47]} 90. Kb1 {[%clk 0:00:49]}  Kd8 {[%clk 0:00:48]} 91. Ka1 {[%clk 0:00:50]}  Ke8 {[%clk 0:00:48]} 92. Kb1 {[%clk 0:00:51]}  Kf8 {[%clk 0:00:49]} 93. Ka1 {[%clk 0:00:52]}  Kg8 {[%clk 0:00:50]} 94. Kb1 {[%clk 0:00:53]}  Kh8 {[%clk 0:00:50]} 95. Ka2 {[%clk 0:00:54]}  Kh7 {[%clk 0:00:51]} 96. Kxa3 {[%clk 0:00:55]} 1/2-1/2


[Site "https://www.chess.com"]

[Event "Titled Tuesday Blitz March 22 Early 2022"]
[White "Maevsky, Nikolay"]
[Black "Van den Dikkenberg, Erik"]
[WhiteFideId "4198220"]
[BlackFideId "1005880"]
[WhiteElo "2126"]
[BlackElo "2118"]
[Result "1-0"]
[Round "10"]
[TimeControl "180+1"]
[Date "2022.03.22"]
[WhiteClock "0:01:13"]
[BlackClock "0:00:21"]

1. d4 {[%clk 0:03:00]}  Nf6 {[%clk 0:02:59]} 2. Nf3 {[%clk 0:03:01]}  g6 {[%clk 0:03:00]} 3. c4 {[%clk 0:03:01]}  Bg7 {[%clk 0:03:01]} 4. Nc3 {[%clk 0:03:01]}  O-O {[%clk 0:03:01]} 5. e4 {[%clk 0:03:02]}  d6 {[%clk 0:03:02]} 6. Be2 {[%clk 0:03:03]}  e5 {[%clk 0:03:02]} 7. d5 {[%clk 0:03:03]}  Nbd7 {[%clk 0:03:02]} 8. Bg5 {[%clk 0:03:03]}  a5 {[%clk 0:03:02]} 9. Nd2 {[%clk 0:03:03]}  Nc5 {[%clk 0:03:01]} 10. O-O {[%clk 0:02:58]}  Bd7 {[%clk 0:03:01]} 11. b3 {[%clk 0:02:57]}  Qb8 {[%clk 0:03:01]} 12. a3 {[%clk 0:02:52]}  Qa7 {[%clk 0:03:00]} 13. Be3 {[%clk 0:02:51]}  b6 {[%clk 0:02:59]} 14. f3 {[%clk 0:02:48]}  Nh5 {[%clk 0:02:39]} 15. g3 {[%clk 0:02:44]}  f5 {[%clk 0:02:38]} 16. exf5 {[%clk 0:02:41]}  gxf5 {[%clk 0:02:37]} 17. Qc2 {[%clk 0:02:27]}  f4 {[%clk 0:02:33]} 18. Bf2 {[%clk 0:02:27]}  Bf5 {[%clk 0:02:30]} 19. Nde4 {[%clk 0:02:27]}  fxg3 {[%clk 0:02:26]} 20. hxg3 {[%clk 0:02:26]}  Nf6 {[%clk 0:02:15]} 21. Rfe1 {[%clk 0:02:09]}  Bxe4 {[%clk 0:02:09]} 22. fxe4 {[%clk 0:02:03]}  Bh6 {[%clk 0:02:03]} 23. Kg2 {[%clk 0:01:58]}  Rae8 {[%clk 0:01:55]} 24. Rh1 {[%clk 0:01:56]}  Bg5 {[%clk 0:01:53]} 25. b4 {[%clk 0:01:55]}  Ncd7 {[%clk 0:01:46]} 26. Nb5 {[%clk 0:01:54]}  Qb8 {[%clk 0:01:45]} 27. bxa5 {[%clk 0:01:52]}  bxa5 {[%clk 0:01:45]} 28. Rab1 {[%clk 0:01:52]}  Qd8 {[%clk 0:01:43]} 29. Na7 {[%clk 0:01:46]}  Nc5 {[%clk 0:01:41]} 30. Nc6 {[%clk 0:01:44]}  Qd7 {[%clk 0:01:41]} 31. Bxc5 {[%clk 0:01:43]}  dxc5 {[%clk 0:01:39]} 32. Qd3 {[%clk 0:01:40]}  Ng4 {[%clk 0:01:35]} 33. Bxg4 {[%clk 0:01:40]}  Qxg4 {[%clk 0:01:35]} 34. Rbf1 {[%clk 0:01:40]}  Rf4 {[%clk 0:01:04]} 35. Rxf4 {[%clk 0:01:28]}  exf4 {[%clk 0:00:55]} 36. e5 {[%clk 0:01:27]}  h5 {[%clk 0:00:54]} 37. Qf3 {[%clk 0:01:24]}  fxg3 {[%clk 0:00:48]} 38. Qxg4 {[%clk 0:01:24]}  hxg4 {[%clk 0:00:48]} 39. Kxg3 {[%clk 0:01:24]}  Rf8 {[%clk 0:00:40]} 40. Kxg4 {[%clk 0:01:21]}  Be3 {[%clk 0:00:40]} 41. Ne7+ {[%clk 0:01:19]}  Kf7 {[%clk 0:00:40]} 42. Nf5 {[%clk 0:01:19]}  Rg8+ {[%clk 0:00:37]} 43. Kf3 {[%clk 0:01:18]}  Bg5 {[%clk 0:00:36]} 44. Rg1 {[%clk 0:01:14]}  Bd8 {[%clk 0:00:21]} 45. Nh6+ {[%clk 0:01:13]} 1-0


[Site "https://www.chess.com"]

[Event "Titled Tuesday Blitz March 22 Early 2022"]
[White "Manukian, Artak"]
[Black "Jaferian, Koosha"]
[WhiteFideId "13301373"]
[BlackFideId "12507440"]
[WhiteElo "2430"]
[BlackElo "2030"]
[Result "1-0"]
[Round "10"]
[TimeControl "180+1"]
[Date "2022.03.22"]
[WhiteClock "0:00:20"]
[BlackClock "0:00:56"]

1. e4 {[%clk 0:02:53]}  c6 {[%clk 0:03:00]} 2. d4 {[%clk 0:02:53]}  d5 {[%clk 0:03:01]} 3. e5 {[%clk 0:02:53]}  Bf5 {[%clk 0:03:01]} 4. c4 {[%clk 0:02:52]}  e6 {[%clk 0:02:59]} 5. Nc3 {[%clk 0:02:52]}  dxc4 {[%clk 0:02:58]} 6. Bxc4 {[%clk 0:02:51]}  Ne7 {[%clk 0:02:58]} 7. Nf3 {[%clk 0:02:51]}  Nd7 {[%clk 0:02:57]} 8. Nh4 {[%clk 0:02:50]}  Bg6 {[%clk 0:02:58]} 9. Bg5 {[%clk 0:02:40]}  Nb6 {[%clk 0:02:57]} 10. Bb3 {[%clk 0:02:40]}  Qc7 {[%clk 0:02:56]} 11. O-O {[%clk 0:02:36]}  Nf5 {[%clk 0:02:49]} 12. Nxf5 {[%clk 0:02:31]}  Bxf5 {[%clk 0:02:49]} 13. Qe2 {[%clk 0:02:30]}  Be7 {[%clk 0:02:47]} 14. Bxe7 {[%clk 0:02:20]}  Qxe7 {[%clk 0:02:48]} 15. Bc2 {[%clk 0:02:16]}  Bxc2 {[%clk 0:02:48]} 16. Qxc2 {[%clk 0:02:16]}  O-O {[%clk 0:02:49]} 17. Ne4 {[%clk 0:02:16]}  Rfd8 {[%clk 0:02:44]} 18. Rad1 {[%clk 0:02:13]}  Nd5 {[%clk 0:02:31]} 19. a3 {[%clk 0:02:02]}  Rd7 {[%clk 0:02:30]} 20. Rd3 {[%clk 0:02:00]}  Rad8 {[%clk 0:02:30]} 21. Nd6 {[%clk 0:01:55]}  Nb6 {[%clk 0:02:10]} 22. Rf3 {[%clk 0:01:24]}  Rf8 {[%clk 0:02:03]} 23. Rd1 {[%clk 0:01:07]}  Nc8 {[%clk 0:02:02]} 24. Ne4 {[%clk 0:00:51]}  Rfd8 {[%clk 0:01:50]} 25. Rh3 {[%clk 0:00:46]}  h6 {[%clk 0:01:39]} 26. Rxh6 {[%clk 0:00:22]}  gxh6 {[%clk 0:00:55]} 27. Nf6+ {[%clk 0:00:21]}  Kf8 {[%clk 0:00:56]} 28. Qh7 {[%clk 0:00:20]} 1-0


[Site "https://www.chess.com"]

[Event "Titled Tuesday Blitz March 22 Early 2022"]
[White "Martinez Alcantara, Jose Eduardo"]
[Black "Tari, Aryan"]
[WhiteFideId "3805662"]
[BlackFideId "1510045"]
[WhiteElo "2690"]
[BlackElo "2567"]
[Result "1-0"]
[Round "10"]
[TimeControl "180+1"]
[Date "2022.03.22"]
[WhiteClock "0:00:13"]
[BlackClock "0:00:05"]

1. e4 {[%clk 0:03:00]}  e5 {[%clk 0:02:57]} 2. Nf3 {[%clk 0:03:01]}  Nc6 {[%clk 0:02:58]} 3. Bb5 {[%clk 0:03:02]}  Nf6 {[%clk 0:02:59]} 4. d3 {[%clk 0:03:02]}  Bc5 {[%clk 0:02:58]} 5. Be3 {[%clk 0:02:58]}  Bxe3 {[%clk 0:02:54]} 6. fxe3 {[%clk 0:02:59]}  Ne7 {[%clk 0:02:55]} 7. O-O {[%clk 0:02:57]}  c6 {[%clk 0:02:49]} 8. Ba4 {[%clk 0:02:53]}  O-O {[%clk 0:02:43]} 9. Bb3 {[%clk 0:02:52]}  Ng6 {[%clk 0:02:41]} 10. Qe1 {[%clk 0:02:43]}  d5 {[%clk 0:02:23]} 11. Nc3 {[%clk 0:02:34]}  h6 {[%clk 0:02:14]} 12. Rd1 {[%clk 0:02:31]}  Be6 {[%clk 0:02:03]} 13. Qg3 {[%clk 0:02:10]}  Qb6 {[%clk 0:01:57]} 14. Kh1 {[%clk 0:01:43]}  Rae8 {[%clk 0:01:22]} 15. exd5 {[%clk 0:01:36]}  cxd5 {[%clk 0:01:18]} 16. Rde1 {[%clk 0:01:24]}  Nh5 {[%clk 0:01:04]} 17. Qf2 {[%clk 0:01:24]}  Qd8 {[%clk 0:01:05]} 18. e4 {[%clk 0:01:08]}  d4 {[%clk 0:01:04]} 19. Bxe6 {[%clk 0:01:00]}  fxe6 {[%clk 0:00:48]} 20. Ne2 {[%clk 0:00:59]}  Kh7 {[%clk 0:00:48]} 21. Qg1 {[%clk 0:00:56]}  Qb6 {[%clk 0:00:41]} 22. c3 {[%clk 0:00:52]}  Qxb2 {[%clk 0:00:28]} 23. cxd4 {[%clk 0:00:51]}  exd4 {[%clk 0:00:24]} 24. Nexd4 {[%clk 0:00:41]}  Nhf4 {[%clk 0:00:24]} 25. Rf2 {[%clk 0:00:35]}  Qc3 {[%clk 0:00:19]} 26. Rd1 {[%clk 0:00:26]}  Nxd3 {[%clk 0:00:16]} 27. Rc2 {[%clk 0:00:26]}  Qa3 {[%clk 0:00:16]} 28. Qe3 {[%clk 0:00:20]}  Rc8 {[%clk 0:00:06]} 29. Rxd3 {[%clk 0:00:13]}  Qb4 {[%clk 0:00:05]} 30. Rd1 {[%clk 0:00:13]}  e5 {[%clk 0:00:04]} 31. Rxc8 {[%clk 0:00:13]}  exd4 {[%clk 0:00:05]} 32. Qc1 {[%clk 0:00:13]} 1-0


[Site "https://www.chess.com"]